[Event "Romanian Superleague 2022"]
[Site "Oradea"]
[Date "2022.09.22"]
[Round "2.16"]
[White "Vajda, Albert"]
[Black "Ghimpu, Samuel-Timotei"]
[Result "0-1"]
[ECO "B10"]
[WhiteElo "2305"]
[BlackElo "2434"]
[Annotator "TA"]
[PlyCount "66"]
[EventDate "2022.09.21"]
[EventType "team-tourn"]
[EventCountry "ROU"]
[SourceTitle "playchess.com"]
[Source "ChessBase"]
[SourceQuality "1"]
[TimeControl "40/5400+30:1800+30"]

{[%evp 15,66,-43,-22,-36,-25,-19,-39,-35,-33,-34,-24,-35,-24,-55,-54,-54,-48,-57,-16,-24,-25,-35,-34,-39,-19,-22,-13,-8,-14,-19,0,-31,0,-2,-10,-16,0,0,3,11,9,-9,-14,-18,0,0,0,0,0,0,0,-261,-294]} 1. e4 {[%emt 0:00:04]} c6 {[%emt 0:00:50]} 2. d3 {[%emt 0:00:43]} d5 {[%emt 0:01:22]} 3. Nd2 {[%emt 0:00:23]} e5 {[%emt 0:00:24]} 4. Ngf3 {[%emt 0:00:15]} Bd6 {[%emt 0:00:09]} 5. g3 {[%emt 0:01:13]} Nf6 {[%emt 0:00:21]} 6. Bg2 {[%emt 0:00:21]} O-O {[%emt 0:00:07]} 7. O-O {[%emt 0:00:17]} Re8 {[%emt 0:00:04]} 8. h3 {[%emt 0:10:15]} Nbd7 {[%emt 0:02:15]} 9. a4 {[%emt 0:07:16] B10: Caro-Kann: 2 d3 and 2 c4.} a5 {[%emt 0:00:30]} 10. Re1 {[%emt 0:01:22]} h6 {[%emt 0:00:13]} 11. Nf1 {[%emt 0:03:02] [#] Black is slightly better.} Bf8 $146 {[%emt 0:14:03]} ({Predecessor:} 11... dxe4 12. dxe4 Nc5 13. N3d2 Be6 14. Qe2 Bf8 15. Ne3 Qc7 16. Qf3 Nfd7 17. g4 Rad8 {0-1 (42) Robertson,I (2175)-Grant,J (2295) Grangemouth 1995}) 12. exd5 {[%emt 0:04:58]} cxd5 {[%emt 0:02:45]} 13. d4 {[%emt 0:04:38][%cal Rd4e5]} e4 {[%emt 0:01:25]} 14. N3d2 {[%emt 0:01:41]} Nb6 {[%emt 0:10:39][%cal Bd7b6,Bb6c8,Bc8d6][%mdl 32]} 15. b3 {[%emt 0:05:02]} Be6 {[%emt 0:02:47]} 16. Bb2 {[%emt 0:02:12]} Nc8 {[%emt 0:00:32]} 17. c4 {[%emt 0:02:59]} Bb4 {[%emt 0:00:37]} 18. cxd5 {[%emt 0:08:25]} Bxd5 {[%emt 0:03:23]} 19. Re2 {[%emt 0:00:12]} Nd6 {[%emt 0:17:16]} (19... Bxd2 $5 20. Nxd2 Nd6 $11) 20. Ne3 {[%emt 0:03:14]} Bxd2 {[%emt 0:00:48]} 21. Rxd2 {[%emt 0:00:49]} Qd7 {[%emt 0:00:23]} 22. g4 {[%emt 0:09:44] Inhibits Nf5.} Rac8 {[%emt 0:04:19]} 23. Rc1 {[%emt 0:01:10]} Rxc1 {[%emt 0:05:38]} 24. Bxc1 {[%emt 0:01:07]} b5 {[%emt 0:00:15]} 25. Bf1 {[%emt 0:03:48]} bxa4 {[%emt 0:06:08]} 26. bxa4 {[%emt 0:00:22]} Bc6 {[%emt 0:00:12]} 27. Ra2 {[%emt 0:04:00]} Nd5 $36 {[%emt 0:00:57][%mdl 2048] [#] aiming for ...Nc3. White is under pressure.} 28. Nxd5 {[%emt 0:00:51]} Bxd5 {[%emt 0:00:08]} 29. Ra3 {[%emt 0:00:50]} Bc4 {[%emt 0:02:40]} 30. Bf4 {[%emt 0:01:57]} Bxf1 {[%emt 0:00:45]} 31. Qxf1 {[%emt 0:00:08]} Qc6 {[%emt 0:07:31] Inhibits Qa6.} 32. Qd1 {[%emt 0:08:06]} Nc4 {[%emt 0:00:24]} 33. d5 $2 {[%emt 0:02:14][%mdl 8192] [#]} (33. Rc3 $11 {and White stays safe.}) 33... Qf6 {[%emt 0:00:08] Weighted Error Value: White=0.21 (precise) /Black=0.07 (flawless)} 0-1

[Event "Romanian Superleague 2022"]
[Site "Oradea"]
[Date "2022.09.22"]
[Round "2.17"]
[White "David, Alexandru-Vasile"]
[Black "Balla, Tamas-Kristof"]
[Result "1-0"]
[ECO "E71"]
[WhiteElo "2417"]
[BlackElo "2325"]
[Annotator "TA"]
[PlyCount "63"]
[EventDate "2022.09.21"]
[EventType "team-tourn"]
[EventCountry "ROU"]
[SourceTitle "playchess.com"]
[Source "ChessBase"]
[SourceQuality "1"]
[TimeControl "40/5400+30:1800+30"]

{[%evp 11,63,37,43,37,59,54,69,56,107,127,109,91,139,133,169,162,171,114,123,123,110,107,133,117,162,141,197,197,197,204,191,189,237,237,237,237,237,243,345,265,536,504,522,532,531,513,969,957,963,940,29986,29987,29987,29986]} 1. d4 {[%emt 0:00:05]} Nf6 {[%emt 0:00:05]} 2. c4 {[%emt 0:00:28]} g6 {[%emt 0:00:07]} 3. Nc3 {[%emt 0:02:24]} Bg7 {[%emt 0:00:06]} 4. e4 {[%emt 0:00:04]} d6 {[%emt 0:00:04]} 5. h3 {[%emt 0:00:15]} O-O {[%emt 0:00:10]} 6. Be3 {[%emt 0:00:05]} Na6 {[%emt 0:00:44]} 7. g4 {[%emt 0:01:20] E71: King's Indian: 4 e4 d6 5 h3.} c5 {[%emt 0:02:47]} 8. Nge2 $1 {[%emt 0:02:29] 8.Nge2 scores better than 8.d5.} Qa5 {[%emt 0:09:37]} 9. Qd2 $1 {[%emt 0:02:20] White is slightly better.} e5 {[%emt 0:02:53] [#]} (9... cxd4 $14 10. Nxd4 Be6) 10. d5 $1 $16 {[%emt 0:03:19]} Nc7 {[%emt 0:16:02] [#]} 11. f3 $146 {[%emt 0:03:19]} ({Predecessor:} 11. Ng3 a6 12. Bh6 b5 13. Rg1 Rb8 14. Nh5 Nxh5 15. gxh5 bxc4 16. Bxg7 Kxg7 17. Bxc4 {0-1 (77) Storme,I (2397)-Maltsevskaya,A (2331) Chess.com INT 2021}) 11... Rb8 {[%emt 0:11:37]} (11... Bd7 $142) 12. a4 {[%emt 0:08:32]} Na6 {[%emt 0:05:18]} 13. Ng3 {[%emt 0:05:14]} Ne8 {[%emt 0:04:34]} 14. Bd3 {[%emt 0:06:29]} (14. h4 $18) 14... Nb4 {[%emt 0:01:06]} 15. Bb1 {[%emt 0:00:16]} a6 {[%emt 0:01:54]} 16. Ra3 {[%emt 0:01:44]} Qc7 {[%emt 0:00:27]} 17. h4 {[%emt 0:00:46][%cal Bh3h4,Bh4h5,Bh5h6][%mdl 32]} f6 {[%emt 0:00:39]} 18. h5 {[%emt 0:03:37]} g5 {[%emt 0:01:37]} (18... b6 $16 {was necessary.} 19. b3 Kf7) 19. h6 $18 {[%emt 0:02:12]} Bh8 {[%emt 0:00:35]} 20. a5 {[%emt 0:01:08]} b6 {[%emt 0:01:47]} 21. axb6 {[%emt 0:04:05]} Rxb6 {[%emt 0:00:36]} (21... Qxb6 {is a better defense.} 22. Nf5 Bd7) 22. Bc2 {[%emt 0:02:44]} Rf7 {[%emt 0:04:59]} 23. Ba4 {[%emt 0:01:34]} Kf8 {[%emt 0:00:08]} 24. Nf5 {[%emt 0:04:24]} Qb8 {[%emt 0:01:12]} (24... Rb8 {was called for.} 25. Ne2 Qd8) 25. O-O {[%emt 0:02:00] Black must now prevent Bxe8.} Qc7 $2 {[%emt 0:02:58]} (25... Bxf5 {keeps fighting.} 26. exf5 (26. gxf5 Nc7 $18) 26... Kg8) 26. Bxe8 {[%emt 0:03:04]} Kxe8 {[%emt 0:01:03]} 27. Na4 {[%emt 0:00:06]} Bxf5 {[%emt 0:02:12]} 28. Nxb6 {[%emt 0:00:10]} ({Less strong is} 28. exf5 Rb8 29. Nc3 Kf8 $18) (28. gxf5 Rb8 29. Kg2 Rd7 $16) 28... Bxg4 {[%emt 0:00:14]} (28... Bd7 $142 29. Nxd7 Rxd7) 29. fxg4 {[%emt 0:00:11]} Qxb6 {[%emt 0:00:06] [#]} 30. Bxg5 $1 {[%emt 0:00:12][%mdl 512]} fxg5 {[%emt 0:03:23]} (30... Nc6 31. dxc6) 31. Rxf7 {[%emt 0:00:15]} Kxf7 {[%emt 0:00:05]} 32. Qxg5 {[%emt 0:00:09] Weighted Error Value: White=0.10 (very precise) /Black=0.70} 1-0

[Event "Romanian Superleague 2022"]
[Site "Oradea"]
[Date "2022.09.22"]
[Round "2.18"]
[White "Doncea, Vladimir"]
[Black "Berescu, Alin-Mile"]
[Result "1/2-1/2"]
[ECO "A13"]
[WhiteElo "2342"]
[BlackElo "2440"]
[Annotator "TA"]
[PlyCount "36"]
[EventDate "2022.09.21"]
[EventType "team-tourn"]
[EventCountry "ROU"]
[SourceTitle "playchess.com"]
[Source "ChessBase"]
[SourceQuality "1"]
[TimeControl "40/5400+30:1800+30"]

{[%evp 11,36,0,0,0,0,0,0,0,0,-18,-23,-66,-68,-88,-81,-86,-102,-106,-122,-158,-19,-115,112,-132,-97,-105,-93]} 1. Nf3 {[%emt 0:00:10]} Nf6 {[%emt 0:00:46]} 2. c4 {[%emt 0:00:07]} e6 {[%emt 0:00:53]} 3. g3 {[%emt 0:00:12]} d5 {[%emt 0:01:06]} 4. Bg2 {[%emt 0:00:12]} dxc4 {[%emt 0:03:57]} 5. Na3 {[%emt 0:00:22]} Bxa3 {[%emt 0:12:49]} 6. bxa3 {[%emt 0:02:21]} O-O {[%emt 0:01:11]} 7. Qc2 {[%emt 0:00:13] A13: English Opening: 1...e6.} b5 {[%emt 0:05:24]} 8. Bb2 {[%emt 0:00:41] [#] Threatens to win with Ng5.} Nd5 {[%emt 0:06:33]} 9. O-O {[%emt 0:00:36] The position is equal.} Nd7 {[%emt 0:09:03]} 10. Nd4 {[%emt 0:13:54]} a6 {[%emt 0:05:46][%cal Ba7a6,Ba6b5,Bb5b4][%mdl 32]} 11. a4 {[%emt 0:00:57]} c5 $1 {[%emt 0:06:38]} 12. Nc6 {[%emt 0:02:04]} Qe8 {[%emt 0:08:33] And now ...N7b6 would win.} 13. axb5 {[%emt 0:03:59]} axb5 {[%emt 0:00:05]} 14. a4 {[%emt 0:00:14][%mdl 64] Deflection} b4 {[%emt 0:03:52]} 15. Qxc4 {[%emt 0:04:42] [#]} Ba6 $146 {[%emt 0:01:54]} (15... Bb7 $1 $17 {[%cal Rb7c6]} 16. Ne5 (16. Qg4 $2 f6 $19) 16... N5b6) ({Predecessor:} 15... Bb7 16. Ne5 N5b6 17. Qf4 Bxg2 18. Nxd7 Qxd7 19. Bxg7 Nd5 20. Qg5 f6 21. Bxf6+ Kf7 22. Kxg2 Nxf6 23. Qxc5 {0-1 (53) Schroer,M (2064)-Erenberg,A (2407) Douglas 2018}) 16. Qh4 {[%emt 0:03:39]} (16. Qc2 $11 {remains equal.}) 16... N7f6 $2 {[%emt 0:30:00]} (16... f6 $17 17. Rfc1 (17. Be4 g6 $17) 17... Bb7) 17. e4 $2 {[%emt 1:04:37] White has more active pieces.} (17. Bxf6 $16 {keeps the pressure on.} Nxf6 18. Rfc1) 17... Qxc6 {[%emt 0:00:30]} 18. exd5 {[%emt 0:00:30]} exd5 {[%emt 0:00:30] Weighted Error Value: White=0.47/Black=0.44} 1/2-1/2

[Event "Romanian Superleague 2022"]
[Site "Oradea"]
[Date "2022.09.22"]
[Round "2.19"]
[White "Marin, Mihail"]
[Black "Efimenko, Zahar"]
[Result "1/2-1/2"]
[ECO "A07"]
[WhiteElo "2457"]
[BlackElo "2599"]
[Annotator "TA"]
[PlyCount "54"]
[EventDate "2022.09.21"]
[EventType "team-tourn"]
[EventCountry "ROU"]
[SourceTitle "playchess.com"]
[Source "ChessBase"]
[SourceQuality "1"]
[TimeControl "40/5400+30:1800+30"]

{[%evp 9,54,0,0,-20,-15,-27,-8,-8,-4,-11,-15,-9,-6,-15,-5,-6,-17,-27,-16,-40,-31,-26,-18,-43,-39,-31,-15,-20,-15,-28,-24,-31,-27,-23,-20,-35,-37,-47,-25,-18,0,0,0,0,0,0,0]} 1. g3 {[%emt 0:00:04]} e5 {[%emt 0:02:36]} 2. Bg2 {[%emt 0:01:33]} d5 {[%emt 0:05:53]} 3. d3 {[%emt 0:00:15]} Nf6 {[%emt 0:06:54]} 4. Nf3 {[%emt 0:02:50]} Nc6 {[%emt 0:02:29]} 5. O-O {[%emt 0:00:08]} a5 {[%emt 0:03:03]} 6. Bg5 {[%emt 0:06:38] A07: Réti Opening: New York and Capablanca Systems.} Be7 {[%emt 0:01:13]} 7. Nc3 {[%emt 0:00:09] [#]} O-O $146 {[%emt 0:05:52]} ({Predecessor:} 7... d4 8. Bxf6 Bxf6 9. Ne4 Be7 10. e3 O-O 11. exd4 exd4 12. Re1 h6 13. Ned2 Be6 {0-1 (33) Vasli,A (2397)-Lushenkov,M (2434) Chess.com INT 2019}) 8. e4 {[%emt 0:00:20]} dxe4 {[%emt 0:07:18]} 9. dxe4 {[%emt 0:00:22]} Bg4 {[%emt 0:04:11]} 10. Bxf6 {[%emt 0:18:09]} Bxf6 {[%emt 0:00:43]} 11. Nd5 {[%emt 0:02:40]} Nb4 {[%emt 0:02:43][%cal Bc6b4,Bb4a6,Ba6c5,Bc5d7,Bd7f6][%mdl 32]} 12. Ne3 {[%emt 0:06:34]} Be6 {[%emt 0:00:20]} 13. c3 {[%emt 0:07:13]} Na6 {[%emt 0:00:13]} 14. Qe2 {[%emt 0:04:12]} c6 {[%emt 0:02:22]} 15. Rfd1 {[%emt 0:01:13]} Qc7 {[%emt 0:01:33]} 16. h3 {[%emt 0:05:23]} Nc5 {[%emt 0:10:06]} 17. Ng4 {[%emt 0:02:12]} Nd7 {[%emt 0:08:04]} 18. Nxf6+ {[%emt 0:00:28]} Nxf6 {[%emt 0:00:23]} 19. Ng5 {[%emt 0:06:22]} Bd7 {[%emt 0:03:43]} 20. Qe3 {[%emt 0:01:28]} h6 {[%emt 0:04:16]} 21. Nf3 {[%emt 0:01:31]} Rad8 {[%emt 0:00:42][%cal Ba8d8,Bd8d7,Bd7d1][%mdl 32]} 22. Ne1 {[%emt 0:12:16]} Be6 {[%emt 0:03:14]} 23. Nd3 {[%emt 0:00:24]} Bc4 {[%emt 0:02:29]} 24. Bf1 {[%emt 0:00:42][%cal Bg2f1,Bf1d3,Bd3c2][%mdl 32]} Bxd3 {[%emt 0:03:48] The position is equal.} 25. Bxd3 {[%emt 0:01:34]} Rd7 {[%emt 0:00:06]} 26. Kg2 {[%emt 0:01:48]} Rfd8 {[%emt 0:01:15]} 27. Bc2 {[%emt 0:00:38]} Rxd1 {[%emt 0:02:37] Weighted Error Value: White=0.06 (flawless) /Black=0.05 (flawless)} 1/2-1/2

[Event "Romanian Superleague 2022"]
[Site "Oradea"]
[Date "2022.09.22"]
[Round "2.20"]
[White "Baklan, Vladimir"]
[Black "Miron, Lucian-Costin"]
[Result "1/2-1/2"]
[ECO "B90"]
[WhiteElo "2578"]
[BlackElo "2498"]
[Annotator "TA"]
[PlyCount "40"]
[EventDate "2022.09.21"]
[EventType "team-tourn"]
[EventCountry "ROU"]
[SourceTitle "playchess.com"]
[Source "ChessBase"]
[SourceQuality "1"]
[TimeControl "40/5400+30:1800+30"]

{[%evp 16,40,0,15,20,26,25,9,19,22,21,32,30,14,52,22,25,15,16,-16,-12,-14,11,0,4,13,0]} 1. e4 {[%emt 0:00:04]} c5 {[%emt 0:00:09]} 2. Nf3 {[%emt 0:00:04]} d6 {[%emt 0:00:05]} 3. d4 {[%emt 0:00:06]} cxd4 {[%emt 0:00:04]} 4. Nxd4 {[%emt 0:00:03]} Nf6 {[%emt 0:00:07]} 5. Nc3 {[%emt 0:00:03]} a6 {[%emt 0:00:05]} 6. Be3 {[%emt 0:00:18]} Ng4 {[%emt 0:00:28]} 7. Bc1 {[%emt 0:01:44]} Nf6 {[%emt 0:00:17]} 8. h3 {[%emt 0:04:59]} e5 {[%emt 0:00:39]} 9. Nde2 {[%emt 0:00:06]} h5 {[%emt 0:00:07] B90: Sicilian Najdorf: Unusual White 6th moves, 6 Be3 Ng4 and 6 Be3 e5.} 10. g3 {[%emt 0:01:56]} Be7 {[%emt 0:01:26] 10...Nbd7 is setting a new trend.} 11. Bg2 {[%emt 0:04:05]} b5 {[%emt 0:00:35]} 12. Nd5 {[%emt 0:00:11]} Nxd5 {[%emt 0:00:07]} 13. Qxd5 {[%emt 0:00:06]} Ra7 {[%emt 0:00:04]} 14. Be3 {[%emt 0:03:02]} Rb7 {[%emt 0:01:05]} 15. Qd2 {[%emt 0:09:34]} Nd7 {[%emt 0:00:46]} 16. Nc3 {[%emt 0:01:14]} Nf6 {[%emt 0:00:34] The position is equal.} 17. Nd5 {[%emt 0:00:58]} Nxd5 {[%emt 0:00:50]} 18. Qxd5 {[%emt 0:00:12] [#]} Rd7 $146 {[%emt 0:33:20]} ({Predecessor:} 18... O-O 19. O-O Rd7 20. a4 b4 21. Qd1 h4 22. Qd2 Bb7 23. Qxb4 Qa8 24. Rfd1 Rc8 25. c3 a5 26. Qb5 Bc6 {0-1 (49) Bharat,K (2210)-Prraneeth,V (2464) Dubai 2022}) 19. O-O-O {[%emt 0:06:11]} Bb7 {[%emt 0:01:04]} 20. Qd3 {[%emt 0:00:13]} h4 {[%emt 0:06:49] Weighted Error Value: White=0.09 (flawless) /Black=0.03 (flawless)} 1/2-1/2

[Event "Romanian Superleague 2022"]
[Site "Oradea"]
[Date "2022.09.22"]
[Round "2.21"]
[White "Secheres, Adrian-Simion"]
[Black "Nanu, Costica-Ciprian"]
[Result "1/2-1/2"]
[ECO "D37"]
[WhiteElo "2375"]
[BlackElo "2518"]
[Annotator "TA"]
[PlyCount "72"]
[EventDate "2022.09.21"]
[EventType "team-tourn"]
[EventCountry "ROU"]
[SourceTitle "playchess.com"]
[Source "ChessBase"]
[SourceQuality "1"]
[TimeControl "40/5400+30:1800+30"]

{[%evp 9,72,28,28,29,25,29,34,29,28,28,29,29,29,30,34,30,27,30,31,13,27,23,41,32,37,26,37,37,37,37,37,43,47,34,68,75,90,95,90,90,80,89,84,93,83,58,63,0,0,0,0,0,0,0,0,0,0,0,0,0,0,0,0,0,480]} 1. d4 {[%emt 0:00:04]} Nf6 {[%emt 0:00:30]} 2. c4 {[%emt 0:00:15]} e6 {[%emt 0:00:04]} 3. Nf3 {[%emt 0:00:30]} d5 {[%emt 0:02:25]} 4. Nc3 {[%emt 0:00:34]} a6 {[%emt 0:00:47]} 5. cxd5 {[%emt 0:04:19]} exd5 {[%emt 0:00:09]} 6. Bg5 {[%emt 0:00:12] D37: Queen's Gambit Declined: 5 Bf4.} Be6 {[%emt 0:00:21]} 7. e3 {[%emt 0:01:14]} Nbd7 {[%emt 0:00:35]} 8. Bd3 {[%emt 0:00:32] White is slightly better.} c6 {[%emt 0:01:12]} 9. O-O {[%emt 0:00:23]} Bd6 {[%emt 0:00:20]} 10. Bf4 {[%emt 0:01:04]} Qc7 {[%emt 0:01:23]} 11. Bxd6 {[%emt 0:01:46]} Qxd6 {[%emt 0:00:04]} 12. Qc2 {[%emt 0:00:12]} O-O {[%emt 0:03:47]} 13. Rac1 {[%emt 0:09:29]} Rfe8 {[%emt 0:02:03] [#]} 14. Rfe1 $146 {[%emt 0:02:14]} ({Predecessor:} 14. h3 g6 15. Na4 Rab8 16. Nc5 Nh5 17. b4 Ng7 18. a4 Bf5 19. Nxd7 Qxd7 20. Ne5 {½-½ (36) Barak,D (2070)-Kriebel,T (2528) Czech Republic 2019}) 14... h6 {[%emt 0:03:58]} 15. Nd2 {[%emt 0:06:20]} c5 {[%emt 0:24:12]} 16. dxc5 {[%emt 0:02:37]} Qxc5 {[%emt 0:02:36]} 17. Nf3 {[%emt 0:04:19]} Qd6 {[%emt 0:01:50]} 18. Ne2 {[%emt 0:02:43]} Ne5 {[%emt 0:14:22]} 19. Nxe5 {[%emt 1:01:13]} Qxe5 {[%emt 0:00:42]} 20. Nd4 {[%emt 0:00:00]} Rac8 {[%emt 0:02:53]} 21. Qb3 {[%emt 0:00:00]} Rc7 {[%emt 0:13:37]} 22. Qb6 {[%emt 0:00:00]} Rec8 {[%emt 0:01:13]} 23. f4 $1 {[%emt 0:00:00]} Nd7 {[%emt 0:08:04][%cal Bf6d7,Bd7e5,Be5d3][%mdl 32] [#]} (23... Rxc1 $2 24. fxe5 Rxe1+ 25. Kf2 $18) 24. Qb4 $1 {[%emt 0:00:00]} ({But not} 24. fxe5 Nxb6 25. Rxc7 Rxc7 $11) 24... Qf6 {[%emt 0:00:12]} 25. Rxc7 {[%emt 0:00:00] White is much more active.} Rxc7 {[%emt 0:00:05] [#]} 26. Qd6 $1 {[%emt 0:00:00]} Rc8 {[%emt 0:00:08]} 27. f5 {[%emt 0:00:00]} Qe5 {[%emt 0:00:47]} 28. Qxe5 {[%emt 0:00:00]} (28. Qa3 $1 $14 Rc1 29. Rxc1 Qxe3+ 30. Kf1 Qxc1+ 31. Ke2) 28... Nxe5 $11 {[%emt 0:00:06] The position is equal.} 29. Bxa6 {[%emt 0:00:00]} bxa6 {[%emt 0:00:22]} 30. fxe6 {[%emt 0:00:00]} fxe6 {[%emt 0:00:10]} 31. Nxe6 $14 {[%emt 0:00:00][%mdl 4096] Endgame KRN-KRN} Rc2 {[%emt 0:00:16]} 32. b4 {[%emt 0:00:00]} Rxa2 {[%emt 0:01:03]} 33. Nc7 {[%emt 0:00:00]} Nd3 {[%emt 0:12:06][%csl LRb4,LRe1]} 34. Rb1 {[%emt 0:00:00]} Kf7 {[%emt 0:00:47]} 35. Nxd5 {[%emt 0:00:00]} Ke6 {[%emt 0:00:19]} 36. Nf4+ {[%emt 0:03:22]} Ke5 $2 {[%emt 0:05:02][%mdl 40960] Weighted Error Value: White=0.04 (flawless) /Black=0.04 (flawless) . An unexpected result.} (36... Nxf4 $11 {and Black has nothing to worry.} 37. exf4 Kf5) 1/2-1/2

[Event "Romanian Superleague 2022"]
[Site "Oradea"]
[Date "2022.09.22"]
[Round "2.22"]
[White "Manolache, Marius"]
[Black "Filip, Andrei"]
[Result "1-0"]
[ECO "D02"]
[WhiteElo "2455"]
[BlackElo "2356"]
[Annotator "TA"]
[PlyCount "89"]
[EventDate "2022.09.21"]
[EventType "team-tourn"]
[EventCountry "ROU"]
[SourceTitle "playchess.com"]
[Source "ChessBase"]
[SourceQuality "1"]
[TimeControl "40/5400+30:1800+30"]

{[%evp 11,89,0,-6,-1,0,0,21,0,0,0,0,0,0,0,0,0,102,94,93,83,65,65,165,155,156,126,126,130,97,37,36,0,0,0,104,95,143,142,143,140,189,189,185,175,187,185,202,197,204,194,208,200,214,211,264,260,347,344,333,336,479,474,469,466,546,485,820,811,990,969,1172,1150,1337,1289,1173,1057,1305,1343,6817,6250]} 1. d4 {[%emt 0:00:14]} d5 {[%emt 0:00:13]} 2. Nf3 {[%emt 0:00:21]} Nf6 {[%emt 0:00:09]} 3. Bf4 {[%emt 0:01:05]} e6 {[%emt 0:01:34]} 4. e3 {[%emt 0:00:47]} Bd6 {[%emt 0:00:14]} 5. Ne5 {[%emt 0:01:56]} O-O {[%emt 0:02:20]} 6. Nd2 {[%emt 0:01:10]} c5 {[%emt 0:01:35]} 7. c3 {[%emt 0:00:44] D02: 1 d4 d5 2 Nf3 sidelines, including 2...Nf6 3 g3 and 2...Nf6 3 Bf4.} Qc7 {[%emt 0:01:16] is cutting edge theory.} 8. Bd3 {[%emt 0:05:42]} Nfd7 {[%emt 0:11:03][%cal Rd6e5]} 9. Bg3 {[%emt 0:15:39] The position is equal.} (9. Qh5 g6 10. Qh4 Nxe5 11. dxe5 Bxe5 $15) 9... Nxe5 {[%emt 0:05:51]} 10. dxe5 {[%emt 0:00:09]} Bxe5 {[%emt 0:00:30]} 11. Bxh7+ {[%emt 0:17:04][%mdl 64] Decoy} Kxh7 {[%emt 0:00:06]} 12. Qh5+ {[%emt 0:00:24]} Kg8 {[%emt 0:00:09] Threatens to win with ...Nd7.} 13. Bxe5 {[%emt 0:02:20]} Qe7 {[%emt 0:02:51]} (13... Qb6 $11 {remains equal.}) 14. Nf3 $1 $16 {[%emt 0:01:39][%cal Bd2f3,Bf3h4,Bh4g6][%mdl 32] White has more active pieces.} f6 {[%emt 0:05:08] Against Ng5} 15. Bxb8 {[%emt 0:00:20]} Rxb8 {[%emt 0:00:37]} 16. Nh4 $1 {[%emt 0:00:09]} Rd8 {[%emt 0:16:18]} (16... Re8 $1 $14) 17. Ng6 $18 {[%emt 0:00:06]} Qd6 {[%emt 0:02:36] [#]} 18. f4 $146 {[%emt 0:00:23] Hoping for g4.} ({Predecessor:} 18. Rd1 Bd7 19. h4 Be8 20. Qh8+ Kf7 21. Qh7 e5 22. h5 Ke6 23. Nh4 Rd7 24. Qf5+ {1-0 (36) Samusenko,M (2440)-Zaika,D (2289) Moscow 2019}) 18... Bd7 {[%emt 0:02:22] [#]} 19. O-O $1 {[%emt 0:07:23] And now Rad1 would win.} Bb5 {[%emt 0:05:32] [#]} 20. Rfd1 {[%emt 0:05:21]} ({White should try} 20. Rf2 $1 $16) 20... Qa6 $1 $14 {[%emt 0:03:00]} 21. Qh8+ {[%emt 0:04:57]} Kf7 {[%emt 0:00:06]} 22. Qh7 $36 {[%emt 0:00:05][%cal Of4f5][%mdl 2048] White fights for an advantage.} Be2 {[%emt 0:00:55]} (22... d4 $11) 23. Rd2 $16 {[%emt 0:01:09][%cal Og2g4] White stays focused until the end.} Bg4 {[%emt 0:01:01]} ({Black should play} 23... d4) 24. Nh4 {[%emt 0:00:08] Qg6+ is the strong threat.} Bf5 {[%emt 0:04:38] Against Qg6+} 25. Qh5+ {[%emt 0:01:38]} Kf8 {[%emt 0:04:10]} (25... Ke7 $16) 26. Nxf5 $18 {[%emt 0:04:40]} exf5 {[%emt 0:00:04]} 27. Qxf5 {[%emt 0:00:06]} Qb6 {[%emt 0:01:42]} 28. Rad1 {[%emt 0:00:51]} c4 {[%emt 0:00:35]} 29. Re2 {[%emt 0:02:25]} (29. Rxd5 $6 Rxd5 30. Qxd5 Qxe3+ 31. Kh1 Qxf4 $16) 29... Re8 {[%emt 0:01:28]} 30. Rd4 {[%emt 0:02:51]} ({Not} 30. Qxd5 $2 Rbd8 31. Qxd8 Rxd8 $19) ({Resist} 30. Rxd5 $6 Rxe3 31. Rb5 Rxe2+ $14) 30... Rbd8 {[%emt 0:01:12]} 31. Kf2 {[%emt 0:02:07]} ({Wrong is} 31. Rxd5 $2 g6 32. Qxg6 Rxd5 33. Qh6+ Ke7 $19) 31... Qc6 {[%emt 0:02:07]} 32. h4 {[%emt 0:00:43][%cal Bh2h4,Bh4h5][%mdl 32]} b5 {[%emt 0:02:34]} 33. h5 {[%emt 0:00:50]} b4 {[%emt 0:02:39]} 34. cxb4 {[%emt 0:01:37][%cal Bc3b4,Bb4a5,Ba5a6][%mdl 32]} Re7 {[%emt 0:00:48]} 35. a3 {[%emt 0:01:00]} Qb6 {[%emt 0:02:42]} (35... Kg8 $142 36. g4 Qd6) 36. Rxd5 {[%emt 0:02:52] White is clearly winning.} Rde8 {[%emt 0:00:05][%cal Re7e3]} 37. Rc5 {[%emt 0:00:33]} Re6 {[%emt 0:04:00]} 38. Qd5 {[%emt 0:02:16]} a5 {[%emt 0:01:25]} (38... R6e7 $142 39. Qxc4 Qd8) 39. bxa5 {[%emt 0:01:53]} Qb3 {[%emt 0:00:11]} 40. Qxc4 {[%emt 0:00:00]} Qd1 {[%emt 0:00:00]} 41. Rc8 {[%emt 0:01:41] Threatening mate with Qxe6.} R6e7 {[%emt 0:01:35]} 42. Rxe8+ {[%emt 0:00:27]} Rxe8 {[%emt 0:00:03]} 43. Qc5+ {[%emt 0:02:28]} Kf7 {[%emt 0:00:41]} 44. a6 {[%emt 0:01:49]} Qh1 {[%emt 0:00:21]} 45. Qd5+ {[%emt 0:00:13] Weighted Error Value: White=0.07 (flawless) /Black=0.36} 1-0